[Event "White Rook U14 Final 2019"]
[Site "Sochi"]
[Date "2019.06.06"]
[Round "4.13"]
[White "Abrazevich, Yauheni"]
[Black "Magomedov, Adam"]
[Result "1/2-1/2"]
[ECO "C00"]
[WhiteElo "1888"]
[BlackElo "1773"]
[Annotator "NA RC"]
[PlyCount "81"]
[EventDate "2019.06.02"]
[EventCountry "RUS"]
[SourceTitle "playchess.com"]
[Source "ChessBase"]
[SourceQuality "1"]
[TimeControl "5400+30"]

1. e4 {[%emt 0:00:00]} e6 {[%emt 0:00:00]} 2. d3 {[%emt 0:00:00]} b6 {[%emt 0:00:00]} 3. g3 {[%emt 0:00:00]} Bb7 {[%emt 0:00:00]} 4. Bg2 {[%emt 0:00:00]} f5 {[%emt 0:00:00]} 5. Nc3 {[%emt 0:00:00]} Nf6 {[%emt 0:00:00]} 6. Nge2 {[%emt 0:00:00]} fxe4 {[%emt 0:01:03]} 7. Nxe4 {[%emt 0:00:00]} Nxe4 {[%emt 0:00:09]} 8. Bxe4 {[%emt 0:00:04]} Bxe4 {[%emt 0:01:41]} 9. dxe4 {[%emt 0:00:04]} Bc5 {[%emt 0:00:46]} 10. O-O {[%emt 0:00:19]} O-O {[%emt 0:00:24]} 11. Nf4 {[%emt 0:00:12]} Qf6 {[%emt 0:16:13]} 12. Nd3 {[%emt 0:04:26]} Nc6 {[%emt 0:25:12]} 13. Nxc5 {[%emt 0:01:22]} bxc5 {[%emt 0:00:07]} 14. c3 {[%emt 0:00:20]} d6 {[%emt 0:00:48]} 15. f4 {[%emt 0:00:28]} Kh8 {[%emt 0:02:42]} 16. Be3 {[%emt 0:02:17]} Rab8 {[%emt 0:06:48]} 17. Rf2 {[%emt 0:01:04]} Qe7 {[%emt 0:06:01]} 18. Qa4 {[%emt 0:01:41]} Qd7 {[%emt 0:03:02]} 19. b3 {[%emt 0:05:57]} a5 {[%emt 0:03:31]} 20. Rd1 {[%emt 0:01:04]} Qe8 {[%emt 0:01:09]} 21. Rdd2 {[%emt 0:15:31]} e5 {[%emt 0:05:39]} 22. f5 {[%emt 0:00:53]} Ra8 {[%emt 0:06:04]} 23. g4 {[%emt 0:01:30]} Ne7 {[%emt 0:04:58]} 24. Qxe8 {[%emt 0:00:23]} Raxe8 {[%emt 0:00:31]} 25. g5 {[%emt 0:01:27]} Nc6 {[%emt 0:02:37]} 26. h4 {[%emt 0:01:35]} a4 {[%emt 0:05:51]} 27. h5 {[%emt 0:12:46]} axb3 {[%emt 0:00:51]} 28. axb3 {[%emt 0:00:06]} Rb8 {[%emt 0:00:36]} 29. Rb2 {[%emt 0:01:43]} Ra8 {[%emt 0:02:06]} 30. g6 {[%emt 0:06:18]} Ra1+ {[%emt 0:00:21]} 31. Kg2 {[%emt 0:00:13]} Re1 {[%emt 0:00:11]} 32. Rf3 {[%emt 0:09:16]} Ra1 {[%emt 0:01:09]} 33. Rbf2 {[%emt 0:04:41]} Raa8 {[%emt 0:01:11]} 34. h6 {[%emt 0:07:04]} hxg6 {[%emt 0:00:53]} 35. fxg6 {[%emt 0:00:00]} Rxf3 {[%emt 0:00:05]} 36. Rxf3 {[%emt 0:00:00]} gxh6 {[%emt 0:01:05]} 37. Bxh6 {[%emt 0:00:01]} Rg8 {[%emt 0:00:00]} 38. Rf6 {[%emt 0:07:07]} Ne7 {[%emt 0:00:53]} 39. g7+ {[%emt 0:00:00]} Kh7 {[%emt 0:00:00]} 40. Kf3 {[%emt 0:00:05]} Ng6 {[%emt 0:00:00]} 41. Rf8 {[%emt 0:00:07]} 1/2-1/2

[Event "White Rook U14 Final 2019"]
[Site "Sochi"]
[Date "2019.06.06"]
[Round "4.14"]
[White "Seregin, Ignat"]
[Black "Dyl, Nikita"]
[Result "1-0"]
[ECO "B07"]
[WhiteElo "1687"]
[BlackElo "1646"]
[Annotator "NA RC"]
[PlyCount "91"]
[EventDate "2019.06.02"]
[EventCountry "RUS"]
[SourceTitle "playchess.com"]
[Source "ChessBase"]
[SourceQuality "1"]
[TimeControl "5400+30"]

1. e4 {[%emt 0:00:00]} g6 {[%emt 0:00:00]} 2. d4 {[%emt 0:00:00]} Bg7 {[%emt 0:00:00]} 3. Nc3 {[%emt 0:00:00]} d6 {[%emt 0:00:00]} 4. Bc4 {[%emt 0:00:00]} Nf6 {[%emt 0:00:00]} 5. Be3 {[%emt 0:00:00]} O-O {[%emt 0:00:01]} 6. Qd2 {[%emt 0:00:00]} Ng4 {[%emt 0:01:10]} 7. Bg5 {[%emt 0:00:49]} h6 {[%emt 0:00:00]} 8. Bh4 {[%emt 0:00:00]} Nd7 {[%emt 0:02:43]} 9. Nf3 {[%emt 0:06:54]} c5 {[%emt 0:02:53]} 10. Nd5 {[%emt 0:06:53]} Ngf6 {[%emt 0:01:34]} 11. Nxf6+ {[%emt 0:14:41]} Nxf6 {[%emt 0:00:28]} 12. Bxf6 {[%emt 0:00:14]} exf6 {[%emt 0:01:27]} 13. O-O-O {[%emt 0:07:21]} Qb6 {[%emt 0:01:16]} 14. Nh4 {[%emt 0:13:43]} Kh7 {[%emt 0:00:55]} 15. f4 {[%emt 0:00:30]} Bg4 {[%emt 0:01:37]} 16. Rde1 {[%emt 0:01:42]} cxd4 {[%emt 0:01:34]} 17. h3 {[%emt 0:07:45]} Rac8 {[%emt 0:03:03]} 18. Bd3 {[%emt 0:00:49]} Be6 {[%emt 0:11:27]} 19. f5 {[%emt 0:05:02]} Bxa2 {[%emt 0:00:31]} 20. fxg6+ {[%emt 0:02:05]} fxg6 {[%emt 0:01:36]} 21. e5 {[%emt 0:01:29]} dxe5 {[%emt 0:00:23]} 22. Nxg6 {[%emt 0:12:32]} f5 {[%emt 0:01:02]} 23. Nxf8+ {[%emt 0:01:35]} Rxf8 {[%emt 0:00:04]} 24. b3 {[%emt 0:00:20]} e4 {[%emt 0:00:09]} 25. Kb2 {[%emt 0:08:13]} Bxb3 {[%emt 0:00:33]} 26. cxb3 {[%emt 0:01:33]} exd3 {[%emt 0:02:41]} 27. Qxd3 {[%emt 0:00:01]} Qc6 {[%emt 0:00:07]} 28. Re2 {[%emt 0:00:22]} Qc5 {[%emt 0:00:37]} 29. Rc1 {[%emt 0:03:16]} Qd5 {[%emt 0:01:43]} 30. Rc7 {[%emt 0:00:48]} Rf6 {[%emt 0:00:22]} 31. g4 {[%emt 0:01:14]} Qa5 {[%emt 0:01:19]} 32. Rxb7 {[%emt 0:01:40]} Ra6 {[%emt 0:01:26]} 33. Rxg7+ {[%emt 0:01:58]} Kxg7 {[%emt 0:00:04]} 34. Qxd4+ {[%emt 0:01:50]} Kf7 {[%emt 0:04:32]} 35. Qd7+ {[%emt 0:00:06]} Kf6 {[%emt 0:02:21]} 36. Qd4+ {[%emt 0:01:20]} Kg5 {[%emt 0:00:47]} 37. Qg7+ {[%emt 0:00:16]} Kf4 {[%emt 0:05:06]} 38. Qd4+ {[%emt 0:00:58]} Kg5 {[%emt 0:00:36]} 39. Qe3+ {[%emt 0:00:00]} Kg6 {[%emt 0:00:00]} 40. Qe8+ {[%emt 0:00:05]} Kg5 {[%emt 0:00:05]} 41. Qe7+ {[%emt 0:00:40]} Kg6 {[%emt 0:00:37]} 42. gxf5+ {[%emt 0:00:40]} Qxf5 {[%emt 0:01:53]} 43. Rg2+ {[%emt 0:00:36]} Kh5 {[%emt 0:02:41]} 44. Qe2+ {[%emt 0:00:54]} Kh4 {[%emt 0:00:09]} 45. Rg4+ {[%emt 0:00:00]} Kh5 {[%emt 0:00:38]} 46. Rf4+ {[%emt 0:00:00]} 1-0

[Event "White Rook U14 Final 2019"]
[Site "Sochi"]
[Date "2019.06.06"]
[Round "4.15"]
[White "Zaiko, Stanislav"]
[Black "Mugenov, Vadim"]
[Result "1-0"]
[ECO "B84"]
[WhiteElo "1176"]
[BlackElo "1329"]
[Annotator "NA RC"]
[PlyCount "79"]
[EventDate "2019.06.02"]
[EventCountry "RUS"]
[SourceTitle "playchess.com"]
[Source "ChessBase"]
[SourceQuality "1"]
[TimeControl "5400+30"]

1. e4 {[%emt 0:00:00]} c5 {[%emt 0:00:15]} 2. Nf3 {[%emt 0:00:16]} d6 {[%emt 0:00:41]} 3. d4 {[%emt 0:00:00]} cxd4 {[%emt 0:00:07]} 4. Nxd4 {[%emt 0:00:09]} Nf6 {[%emt 0:00:00]} 5. Nc3 {[%emt 0:00:08]} a6 {[%emt 0:00:08]} 6. Bc4 {[%emt 0:01:12]} e6 {[%emt 0:00:24]} 7. O-O {[%emt 0:00:08]} Be7 {[%emt 0:00:16]} 8. Be3 {[%emt 0:01:52]} b5 {[%emt 0:00:08]} 9. Bd3 {[%emt 0:00:08]} Bb7 {[%emt 0:00:39]} 10. f3 {[%emt 0:01:12]} O-O {[%emt 0:00:32]} 11. Bf2 {[%emt 0:07:21]} b4 {[%emt 0:00:16]} 12. Nce2 {[%emt 0:00:41]} d5 {[%emt 0:00:08]} 13. exd5 {[%emt 0:07:13]} Nxd5 {[%emt 0:00:32]} 14. Be4 {[%emt 0:01:12]} Qd7 {[%emt 0:02:48]} 15. Nb3 {[%emt 0:06:00]} Rd8 {[%emt 0:23:17]} 16. Na5 {[%emt 0:14:43]} Nc6 {[%emt 0:06:33]} 17. Nc4 {[%emt 0:06:55]} Qe8 {[%emt 0:07:37]} 18. Bxd5 {[%emt 0:06:14]} Rxd5 {[%emt 0:00:22]} 19. Qc1 {[%emt 0:00:07]} Rad8 {[%emt 0:04:20]} 20. c3 {[%emt 0:05:54]} Ne5 {[%emt 0:25:07]} 21. Nxe5 {[%emt 0:02:30]} Rxe5 {[%emt 0:00:11]} 22. Re1 {[%emt 0:00:17]} Bc5 {[%emt 0:09:48]} 23. Bxc5 {[%emt 0:02:44]} Rxc5 {[%emt 0:00:46]} 24. Qf4 {[%emt 0:02:10]} bxc3 {[%emt 0:07:47]} 25. Nxc3 {[%emt 0:00:22]} Qc6 {[%emt 0:00:48]} 26. Rad1 {[%emt 0:02:10]} Rf8 {[%emt 0:00:22]} 27. Rd6 {[%emt 0:10:53]} Qc7 {[%emt 0:02:29]} 28. Red1 {[%emt 0:00:00]} Rf5 {[%emt 0:01:43]} 29. Qb4 {[%emt 0:01:21]} Rg5 {[%emt 0:03:30]} 30. Rd7 {[%emt 0:01:23]} Qe5 {[%emt 0:01:48]} 31. Qxb7 {[%emt 0:02:06]} Qe3+ {[%emt 0:00:21]} 32. Kh1 {[%emt 0:01:41]} Qf2 {[%emt 0:00:53]} 33. R7d2 {[%emt 0:00:33]} Qh4 {[%emt 0:00:11]} 34. Qe4 {[%emt 0:00:09]} Qh6 {[%emt 0:00:00]} 35. Rd8 {[%emt 0:01:55]} Rh5 {[%emt 0:00:21]} 36. Rxf8+ {[%emt 0:00:02]} Kxf8 {[%emt 0:00:05]} 37. Qb4+ {[%emt 0:00:21]} Ke8 {[%emt 0:00:23]} 38. Qb8+ {[%emt 0:00:05]} Ke7 {[%emt 0:00:05]} 39. Qd6+ {[%emt 0:00:04]} Kf6 {[%emt 0:00:19]} 40. Ne4+ {[%emt 0:00:44]} 1-0

[Event "White Rook U14 Final 2019"]
[Site "Sochi"]
[Date "2019.06.06"]
[Round "4.16"]
[White "Mkrtchian, Anait"]
[Black "Zeliantsova, Kseniya"]
[Result "0-1"]
[ECO "B07"]
[WhiteElo "1165"]
[BlackElo "1892"]
[Annotator "NA RC"]
[PlyCount "66"]
[EventDate "2019.06.02"]
[EventCountry "RUS"]
[SourceTitle "playchess.com"]
[Source "ChessBase"]
[SourceQuality "1"]
[TimeControl "5400+30"]

1. e4 {[%emt 0:00:00]} d6 {[%emt 0:00:00]} 2. d4 {[%emt 0:00:00]} Nf6 {[%emt 0:00:00]} 3. Nc3 {[%emt 0:00:00]} g6 {[%emt 0:00:00]} 4. Be3 {[%emt 0:00:00]} Bg7 {[%emt 0:00:00]} 5. Bd3 {[%emt 0:00:00]} O-O {[%emt 0:00:00]} 6. h3 {[%emt 0:02:00]} e5 {[%emt 0:02:00]} 7. dxe5 {[%emt 0:00:30]} dxe5 {[%emt 0:00:31]} 8. Qd2 {[%emt 0:00:04]} Qe7 {[%emt 0:00:06]} 9. Bh6 {[%emt 0:00:12]} Rd8 {[%emt 0:00:00]} 10. Bxg7 {[%emt 0:01:00]} Kxg7 {[%emt 0:00:11]} 11. f3 {[%emt 0:00:52]} c5 {[%emt 0:00:09]} 12. Qe3 {[%emt 0:01:28]} Be6 {[%emt 0:00:19]} 13. g4 {[%emt 0:01:13]} Nc6 {[%emt 0:02:01]} 14. a3 {[%emt 0:01:23]} Nd4 {[%emt 0:00:08]} 15. O-O-O {[%emt 0:03:08]} c4 {[%emt 0:03:10]} 16. Bf1 {[%emt 0:00:39]} b5 {[%emt 0:00:24]} 17. Nge2 {[%emt 0:01:23]} Qc5 {[%emt 0:00:08]} 18. Qg5 {[%emt 0:03:09]} Nxf3 {[%emt 0:02:15]} 19. Qxf6+ {[%emt 0:00:49]} Kxf6 {[%emt 0:00:28]} 20. Bg2 {[%emt 0:01:47]} Nd4 {[%emt 0:01:02]} 21. Nxd4 {[%emt 0:02:18]} Rxd4 {[%emt 0:02:41]} 22. Rxd4 {[%emt 0:00:23]} Qxd4 {[%emt 0:02:04]} 23. Nxb5 {[%emt 0:00:37]} Qe3+ {[%emt 0:00:31]} 24. Kb1 {[%emt 0:00:41]} Rb8 {[%emt 0:00:36]} 25. Rf1+ {[%emt 0:02:10]} Ke7 {[%emt 0:00:21]} 26. Nc7 {[%emt 0:04:20]} Qb6 {[%emt 0:03:01]} 27. Kc1 {[%emt 0:00:13]} Qxc7 {[%emt 0:00:19]} 28. c3 {[%emt 0:01:08]} Qb6 {[%emt 0:00:32]} 29. Kd1 {[%emt 0:00:32]} Qxb2 {[%emt 0:00:06]} 30. Ke1 {[%emt 0:00:41]} Qxg2 {[%emt 0:00:11]} 31. Rf2 {[%emt 0:00:13]} Rb1+ {[%emt 0:00:06]} 32. Ke2 {[%emt 0:01:38]} Qxe4+ {[%emt 0:00:34]} 33. Kd2 {[%emt 0:00:42]} Qd3# {[%emt 0:00:10]} 0-1

[Event "White Rook U14 Final 2019"]
[Site "Sochi"]
[Date "2019.06.06"]
[Round "4.17"]
[White "Gashev, Matvei"]
[Black "Kolev, Georgi"]
[Result "1-0"]
[ECO "D36"]
[WhiteElo "1968"]
[BlackElo "1736"]
[Annotator "NA RC"]
[PlyCount "79"]
[EventDate "2019.06.02"]
[EventCountry "RUS"]
[SourceTitle "playchess.com"]
[Source "ChessBase"]
[SourceQuality "1"]
[TimeControl "5400+30"]

1. c4 {[%emt 0:00:00]} e6 {[%emt 0:00:04]} 2. Nc3 {[%emt 0:00:00]} d5 {[%emt 0:00:15]} 3. cxd5 {[%emt 0:00:00]} exd5 {[%emt 0:00:12]} 4. d4 {[%emt 0:00:00]} Nf6 {[%emt 0:00:44]} 5. Nf3 {[%emt 0:00:00]} Be7 {[%emt 0:01:01]} 6. Bg5 {[%emt 0:00:05]} O-O {[%emt 0:00:47]} 7. Qc2 {[%emt 0:00:19]} c6 {[%emt 0:01:18]} 8. e3 {[%emt 0:00:16]} Ne4 {[%emt 0:05:46]} 9. Bxe7 {[%emt 0:00:40]} Qxe7 {[%emt 0:00:11]} 10. Nxe4 {[%emt 0:02:13]} dxe4 {[%emt 0:00:24]} 11. Nd2 {[%emt 0:00:04]} Bf5 {[%emt 0:03:56]} 12. Be2 {[%emt 0:01:08]} Re8 {[%emt 0:06:35]} 13. O-O-O {[%emt 0:01:03]} Nd7 {[%emt 0:00:59]} 14. h4 {[%emt 0:00:14]} Nf6 {[%emt 0:12:52]} 15. Nc4 {[%emt 0:02:39]} Ng4 {[%emt 0:00:56]} 16. Rdf1 {[%emt 0:01:22]} b5 {[%emt 0:00:47]} 17. Bxg4 {[%emt 0:01:09]} Bxg4 {[%emt 0:00:27]} 18. Ne5 {[%emt 0:00:00]} Bf5 {[%emt 0:01:00]} 19. g4 {[%emt 0:00:16]} Be6 {[%emt 0:00:14]} 20. Kb1 {[%emt 0:00:49]} Rac8 {[%emt 0:10:46]} 21. g5 {[%emt 0:02:49]} Bd5 {[%emt 0:07:28]} 22. Rhg1 {[%emt 0:02:24]} Qe6 {[%emt 0:03:07]} 23. a3 {[%emt 0:08:57]} c5 {[%emt 0:01:19]} 24. Qd1 {[%emt 0:00:51]} cxd4 {[%emt 0:04:09]} 25. exd4 {[%emt 0:00:05]} Bb3 {[%emt 0:00:25]} 26. Qe1 {[%emt 0:03:09]} Bc2+ {[%emt 0:07:45]} 27. Ka1 {[%emt 0:00:23]} b4 {[%emt 0:00:01]} 28. Qxb4 {[%emt 0:02:44]} a5 {[%emt 0:06:00]} 29. Qd2 {[%emt 0:02:17]} Red8 {[%emt 0:01:30]} 30. Qe3 {[%emt 0:01:21]} Rb8 {[%emt 0:01:15]} 31. Rc1 {[%emt 0:01:01]} Rdc8 {[%emt 0:05:38]} 32. Rg3 {[%emt 0:07:00]} Qb6 {[%emt 0:03:18]} 33. b3 {[%emt 0:00:38]} Bxb3 {[%emt 0:04:49]} 34. Rxc8+ {[%emt 0:01:03]} Rxc8 {[%emt 0:00:06]} 35. Qxb3 {[%emt 0:00:30]} Qxd4+ {[%emt 0:00:39]} 36. Qb2 {[%emt 0:00:03]} Qd1+ {[%emt 0:00:11]} 37. Ka2 {[%emt 0:00:52]} Rc2 {[%emt 0:00:00]} 38. Nc4 {[%emt 0:00:04]} Rxb2+ {[%emt 0:00:21]} 39. Nxb2 {[%emt 0:00:05]} g6 {[%emt 0:01:26]} 40. Nxd1 {[%emt 0:00:16]} 1-0

[Event "White Rook U14 Final 2019"]
[Site "Sochi"]
[Date "2019.06.06"]
[Round "4.18"]
[White "Demirov, Todor"]
[Black "Kharitonov, Maksim"]
[Result "1-0"]
[ECO "B40"]
[WhiteElo "1586"]
[BlackElo "1469"]
[Annotator "NA RC"]
[PlyCount "125"]
[EventDate "2019.06.02"]
[EventCountry "RUS"]
[SourceTitle "playchess.com"]
[Source "ChessBase"]
[SourceQuality "1"]
[TimeControl "5400+30"]

1. e4 {[%emt 0:00:00]} c5 {[%emt 0:00:00]} 2. Nf3 {[%emt 0:00:00]} e6 {[%emt 0:00:00]} 3. c3 {[%emt 0:00:00]} d6 {[%emt 0:00:49]} 4. d4 {[%emt 0:00:00]} Qc7 {[%emt 0:12:33]} 5. Be2 {[%emt 0:01:00]} Nd7 {[%emt 0:00:34]} 6. O-O {[%emt 0:00:19]} Ngf6 {[%emt 0:00:44]} 7. Nbd2 {[%emt 0:01:26]} Be7 {[%emt 0:00:00]} 8. Re1 {[%emt 0:01:51]} O-O {[%emt 0:01:50]} 9. Bf1 {[%emt 0:01:20]} a6 {[%emt 0:06:28]} 10. a4 {[%emt 0:02:47]} b6 {[%emt 0:05:34]} 11. b3 {[%emt 0:13:56]} Bb7 {[%emt 0:00:12]} 12. Bb2 {[%emt 0:00:53]} Rfe8 {[%emt 0:07:07]} 13. c4 {[%emt 0:20:21]} Nf8 {[%emt 0:11:54]} 14. d5 {[%emt 0:01:14]} e5 {[%emt 0:08:26]} 15. Bc3 {[%emt 0:09:15]} Qd7 {[%emt 0:11:55]} 16. b4 {[%emt 0:02:53]} Ng6 {[%emt 0:10:14]} 17. a5 {[%emt 0:16:32]} Bd8 {[%emt 0:00:25]} 18. Nb3 {[%emt 0:02:49]} Rc8 {[%emt 0:07:33]} 19. axb6 {[%emt 0:04:38]} Bxb6 {[%emt 0:00:05]} 20. bxc5 {[%emt 0:00:26]} Bxc5 {[%emt 0:00:05]} 21. Nxc5 {[%emt 0:00:09]} Rxc5 {[%emt 0:00:34]} 22. Qa4 {[%emt 0:00:39]} Qe7 {[%emt 0:03:15]} 23. Rab1 {[%emt 0:02:54]} Bc8 {[%emt 0:01:16]} 24. Nd2 {[%emt 0:06:57]} Ng4 {[%emt 0:02:05]} 25. f3 {[%emt 0:02:18]} Nh6 {[%emt 0:01:19]} 26. Nb3 {[%emt 0:00:52]} Rc7 {[%emt 0:00:11]} 27. Rb2 {[%emt 0:00:54]} f5 {[%emt 0:01:04]} 28. c5 {[%emt 0:00:25]} Rd7 {[%emt 0:00:56]} 29. cxd6 {[%emt 0:01:50]} Qxd6 {[%emt 0:02:01]} 30. Bb4 {[%emt 0:00:30]} Qf6 {[%emt 0:00:54]} 31. Nc5 {[%emt 0:00:18]} Rdd8 {[%emt 0:00:31]} 32. Ba5 {[%emt 0:00:14]} Qe7 {[%emt 0:00:53]} 33. Rc1 {[%emt 0:01:02]} Bd7 {[%emt 0:01:42]} 34. Nxd7 {[%emt 0:00:15]} Rxd7 {[%emt 0:00:37]} 35. d6 {[%emt 0:01:06]} Rxd6 {[%emt 0:01:28]} 36. Bb4 {[%emt 0:00:22]} Qd7 {[%emt 0:00:28]} 37. Qa2+ {[%emt 0:00:34]} Rde6 {[%emt 0:00:22]} 38. Bc4 {[%emt 0:01:28]} Kh8 {[%emt 0:01:35]} 39. Bxe6 {[%emt 0:00:00]} Rxe6 {[%emt 0:00:17]} 40. Rd2 {[%emt 0:00:29]} Qe8 {[%emt 0:00:51]} 41. exf5 {[%emt 0:00:03]} Nxf5 {[%emt 0:00:36]} 42. Qxe6 {[%emt 0:00:48]} Qxe6 {[%emt 0:00:11]} 43. Rd8+ {[%emt 0:01:10]} Qg8 {[%emt 0:00:42]} 44. Rcc8 {[%emt 0:00:05]} Nfe7 {[%emt 0:00:00]} 45. Bxe7 {[%emt 0:00:06]} Nxe7 {[%emt 0:00:22]} 46. Rxg8+ {[%emt 0:00:50]} Nxg8 {[%emt 0:00:00]} 47. Ra8 {[%emt 0:00:00]} h6 {[%emt 0:00:00]} 48. Kf2 {[%emt 0:00:00]} Kh7 {[%emt 0:00:00]} 49. Rxa6 {[%emt 0:00:00]} Ne7 {[%emt 0:00:02]} 50. Re6 {[%emt 0:00:19]} Ng6 {[%emt 0:00:50]} 51. g3 {[%emt 0:00:00]} h5 {[%emt 0:00:00]} 52. h4 {[%emt 0:00:02]} Kh6 {[%emt 0:00:00]} 53. Ke3 {[%emt 0:00:44]} Kh7 {[%emt 0:00:00]} 54. Ke4 {[%emt 0:00:00]} Kh6 {[%emt 0:00:07]} 55. Kf5 {[%emt 0:00:00]} e4 {[%emt 0:00:55]} 56. Rxg6+ {[%emt 0:00:07]} Kh7 {[%emt 0:00:00]} 57. fxe4 {[%emt 0:00:08]} Kh8 {[%emt 0:00:00]} 58. Kg5 {[%emt 0:00:06]} Kg8 {[%emt 0:00:16]} 59. Kxh5 {[%emt 0:00:09]} Kh8 {[%emt 0:00:12]} 60. Ra6 {[%emt 0:00:05]} Kh7 {[%emt 0:00:00]} 61. Ra7 {[%emt 0:00:08]} Kh8 {[%emt 0:00:00]} 62. Kg6 {[%emt 0:00:50]} Kg8 {[%emt 0:00:01]} 63. Ra8# {[%emt 0:00:05]} 1-0

[Event "White Rook U14 Final 2019"]
[Site "Sochi"]
[Date "2019.06.06"]
[Round "4.20"]
[White "Petkova, Irina"]
[Black "Belova, Darya"]
[Result "1/2-1/2"]
[ECO "D00"]
[WhiteElo "1207"]
[BlackElo "1163"]
[Annotator "NA RC"]
[PlyCount "117"]
[EventDate "2019.06.02"]
[EventCountry "RUS"]
[SourceTitle "playchess.com"]
[Source "ChessBase"]
[SourceQuality "1"]
[TimeControl "5400+30"]

1. d4 {[%emt 0:00:00]} d5 {[%emt 0:00:00]} 2. Bf4 {[%emt 0:00:00]} e6 {[%emt 0:00:00]} 3. e3 {[%emt 0:00:00]} Bd6 {[%emt 0:00:00]} 4. Bg3 {[%emt 0:00:00]} f5 {[%emt 0:00:00]} 5. Nf3 {[%emt 0:00:00]} Nf6 {[%emt 0:00:00]} 6. c3 {[%emt 0:00:03]} c6 {[%emt 0:00:00]} 7. Ne5 {[%emt 0:00:37]} O-O {[%emt 0:00:00]} 8. f4 {[%emt 0:00:13]} Ne4 {[%emt 0:00:03]} 9. Nd2 {[%emt 0:01:15]} Nd7 {[%emt 0:01:17]} 10. Ndf3 {[%emt 0:00:51]} Ndf6 {[%emt 0:00:14]} 11. Bh4 {[%emt 0:01:23]} Qe8 {[%emt 0:02:38]} 12. Be2 {[%emt 0:00:29]} Bd7 {[%emt 0:01:25]} 13. Nd2 {[%emt 0:06:55]} Nxd2 {[%emt 0:06:06]} 14. Qxd2 {[%emt 0:00:21]} Ne4 {[%emt 0:07:11]} 15. Qd1 {[%emt 0:00:20]} Be7 {[%emt 0:00:59]} 16. Bxe7 {[%emt 0:00:45]} Qxe7 {[%emt 0:01:00]} 17. O-O {[%emt 0:03:54]} Rf6 {[%emt 0:01:10]} 18. Rf3 {[%emt 0:04:48]} Rh6 {[%emt 0:01:56]} 19. Qe1 {[%emt 0:02:39]} Be8 {[%emt 0:03:37]} 20. g4 {[%emt 0:17:35]} fxg4 {[%emt 0:03:23]} 21. Nxg4 {[%emt 0:01:17]} Rg6 {[%emt 0:01:54]} 22. Rh3 {[%emt 0:02:08]} Nf6 {[%emt 0:32:32]} 23. Rg3 {[%emt 0:00:00]} Nxg4 {[%emt 0:07:37]} 24. Rxg4 {[%emt 0:00:00]} Rxg4+ {[%emt 0:00:26]} 25. Bxg4 {[%emt 0:00:05]} Qf6 {[%emt 0:01:18]} 26. Qg3 {[%emt 0:01:35]} Qg6 {[%emt 0:01:55]} 27. Bf3 {[%emt 0:00:16]} Qxg3+ {[%emt 0:00:00]} 28. hxg3 {[%emt 0:00:03]} Bg6 {[%emt 0:01:15]} 29. Kf2 {[%emt 0:00:24]} Kf7 {[%emt 0:01:21]} 30. Rc1 {[%emt 0:02:00]} Rh8 {[%emt 0:00:05]} 31. Rh1 {[%emt 0:00:13]} Ke7 {[%emt 0:01:02]} 32. g4 {[%emt 0:04:43]} Bd3 {[%emt 0:03:25]} 33. a3 {[%emt 0:01:30]} a5 {[%emt 0:06:21]} 34. Be2 {[%emt 0:10:40]} Bxe2 {[%emt 0:02:04]} 35. Kxe2 {[%emt 0:04:00]} Kf6 {[%emt 0:00:46]} 36. Kd3 {[%emt 0:00:06]} b5 {[%emt 0:00:48]} 37. b3 {[%emt 0:00:46]} Kg6 {[%emt 0:00:00]} 38. e4 {[%emt 0:06:08]} Kf7 {[%emt 0:01:24]} 39. exd5 {[%emt 0:00:07]} exd5 {[%emt 0:03:47]} 40. f5 {[%emt 0:02:10]} h6 {[%emt 0:00:31]} 41. Re1 {[%emt 0:01:05]} Re8 {[%emt 0:05:15]} 42. Rxe8 {[%emt 0:02:42]} Kxe8 {[%emt 0:00:06]} 43. Ke3 {[%emt 0:00:20]} Kf7 {[%emt 0:00:04]} 44. Kf4 {[%emt 0:00:07]} Kf6 {[%emt 0:00:07]} 45. a4 {[%emt 0:00:36]} bxa4 {[%emt 0:01:14]} 46. bxa4 {[%emt 0:00:05]} Kf7 {[%emt 0:01:27]} 47. Ke5 {[%emt 0:00:14]} Ke7 {[%emt 0:00:00]} 48. Kf4 {[%emt 0:01:44]} Kf6 {[%emt 0:00:15]} 49. Kf3 {[%emt 0:04:26]} Kf7 {[%emt 0:03:08]} 50. Kg3 {[%emt 0:01:02]} Kf6 {[%emt 0:01:52]} 51. Kh4 {[%emt 0:00:34]} Kf7 {[%emt 0:01:01]} 52. g5 {[%emt 0:00:00]} Ke7 {[%emt 0:01:01]} 53. Kh5 {[%emt 0:06:05]} Kf7 {[%emt 0:00:17]} 54. Kg4 {[%emt 0:02:16]} Ke7 {[%emt 0:00:30]} 55. Kf4 {[%emt 0:02:51]} hxg5+ {[%emt 0:00:24]} 56. Kxg5 {[%emt 0:01:12]} Kf7 {[%emt 0:00:36]} 57. Kg4 {[%emt 0:00:07]} Ke7 {[%emt 0:00:01]} 58. Kf4 {[%emt 0:01:02]} Kf6 {[%emt 0:00:11]} 59. Kg4 {[%emt 0:00:13]} 1/2-1/2